[Event "Titled Tuesday Blitz May 16 Early 2023"]
[White "Ronka, Erik"]
[Black "Tanenbaum, Zachary"]
[WhiteFideId "505080"]
[BlackFideId "2060850"]
[WhiteElo "2264"]
[BlackElo "2175"]
[Result "0-1"]
[Round "05"]
[TimeControl "180+2"]
[Date "2023.05.16"]
[WhiteClock "0:00:08"]
[BlackClock "0:00:06"]

1. d4 {[%clk 0:03:00]}  d5 {[%clk 0:02:59]} 2. c4 {[%clk 0:03:01]}  dxc4 {[%clk 0:02:58]} 3. Nf3 {[%clk 0:02:58]}  Nf6 {[%clk 0:02:59]} 4. Nc3 {[%clk 0:02:58]}  a6 {[%clk 0:02:58]} 5. e4 {[%clk 0:02:56]}  b5 {[%clk 0:02:59]} 6. e5 {[%clk 0:02:56]}  Nd5 {[%clk 0:02:58]} 7. a4 {[%clk 0:02:57]}  e6 {[%clk 0:02:58]} 8. axb5 {[%clk 0:02:51]}  Bb4 {[%clk 0:02:59]} 9. Bd2 {[%clk 0:02:49]}  Nb6 {[%clk 0:02:58]} 10. bxa6 {[%clk 0:02:36]}  Rxa6 {[%clk 0:02:58]} 11. Rxa6 {[%clk 0:02:35]}  Nxa6 {[%clk 0:02:59]} 12. Be2 {[%clk 0:02:35]}  Bb7 {[%clk 0:02:58]} 13. O-O {[%clk 0:02:35]}  Bxf3 {[%clk 0:02:57]} 14. Bxf3 {[%clk 0:02:33]}  Qxd4 {[%clk 0:02:58]} 15. Bc6+ {[%clk 0:02:31]}  Kf8 {[%clk 0:02:52]} 16. Be3 {[%clk 0:02:08]}  Qxd1 {[%clk 0:02:30]} 17. Rxd1 {[%clk 0:02:09]}  Be7 {[%clk 0:02:15]} 18. Ra1 {[%clk 0:01:43]}  Nb4 {[%clk 0:02:09]} 19. Bxb6 {[%clk 0:01:39]}  Nxc6 {[%clk 0:02:09]} 20. Ra8+ {[%clk 0:01:20]}  Bd8 {[%clk 0:02:07]} 21. Bxc7 {[%clk 0:01:19]}  Ke7 {[%clk 0:02:06]} 22. Bd6+ {[%clk 0:01:12]}  Kd7 {[%clk 0:02:06]} 23. Ne4 {[%clk 0:01:05]}  Nd4 {[%clk 0:01:59]} 24. Ra4 {[%clk 0:00:48]}  Bb6 {[%clk 0:01:52]} 25. Rxc4 {[%clk 0:00:45]}  Ra8 {[%clk 0:01:45]} 26. g3 {[%clk 0:00:43]}  Ra5 {[%clk 0:01:24]} 27. Kg2 {[%clk 0:00:41]}  Rb5 {[%clk 0:01:17]} 28. Bc5 {[%clk 0:00:37]}  Nc6 {[%clk 0:01:03]} 29. Bxb6 {[%clk 0:00:13]}  Rxb6 {[%clk 0:01:04]} 30. Nc5+ {[%clk 0:00:12]}  Kc7 {[%clk 0:01:03]} 31. Rh4 {[%clk 0:00:06]}  h6 {[%clk 0:01:00]} 32. Rg4 {[%clk 0:00:06]}  g6 {[%clk 0:01:00]} 33. Nd3 {[%clk 0:00:07]}  Rb3 {[%clk 0:00:54]} 34. Ne1 {[%clk 0:00:07]}  Nxe5 {[%clk 0:00:42]} 35. Re4 {[%clk 0:00:07]}  Nc6 {[%clk 0:00:37]} 36. Re2 {[%clk 0:00:07]}  Nd4 {[%clk 0:00:35]} 37. Rd2 {[%clk 0:00:07]}  e5 {[%clk 0:00:35]} 38. Nd3 {[%clk 0:00:06]}  f6 {[%clk 0:00:33]} 39. Nc5 {[%clk 0:00:07]}  Rb5 {[%clk 0:00:30]} 40. Ne4 {[%clk 0:00:07]}  f5 {[%clk 0:00:29]} 41. Nc3 {[%clk 0:00:08]}  Rb3 {[%clk 0:00:26]} 42. f4 {[%clk 0:00:09]}  Nc6 {[%clk 0:00:17]} 43. Nd5+ {[%clk 0:00:08]}  Kd6 {[%clk 0:00:14]} 44. fxe5+ {[%clk 0:00:09]}  Kxe5 {[%clk 0:00:12]} 45. Nf4 {[%clk 0:00:09]}  g5 {[%clk 0:00:11]} 46. Ne2 {[%clk 0:00:10]}  Nb4 {[%clk 0:00:11]} 47. Nc3 {[%clk 0:00:10]}  Ke6 {[%clk 0:00:10]} 48. Re2+ {[%clk 0:00:10]}  Kf6 {[%clk 0:00:10]} 49. Rd2 {[%clk 0:00:10]}  Kg6 {[%clk 0:00:09]} 50. Rd6+ {[%clk 0:00:09]}  Kg7 {[%clk 0:00:09]} 51. Rd2 {[%clk 0:00:10]}  Nc6 {[%clk 0:00:08]} 52. Rf2 {[%clk 0:00:09]}  Kg6 {[%clk 0:00:07]} 53. Rd2 {[%clk 0:00:09]}  Ne5 {[%clk 0:00:08]} 54. Rd6+ {[%clk 0:00:09]}  Kg7 {[%clk 0:00:08]} 55. Rd2 {[%clk 0:00:10]}  Nc4 {[%clk 0:00:08]} 56. Rd7+ {[%clk 0:00:10]}  Kg6 {[%clk 0:00:07]} 57. Nd1 {[%clk 0:00:11]}  Nxb2 {[%clk 0:00:07]} 58. Nf2 {[%clk 0:00:11]}  Nc4 {[%clk 0:00:06]} 59. Rc7 {[%clk 0:00:11]}  Ne3+ {[%clk 0:00:07]} 60. Kf3 {[%clk 0:00:08]}  Nd5+ {[%clk 0:00:06]} 0-1


[Site "https://www.chess.com"]

[Event "Titled Tuesday Blitz May 16 Early 2023"]
[White "Bethke, Richard"]
[Black "Preotu, Razvan"]
[WhiteFideId "12959243"]
[BlackFideId "2613280"]
[WhiteElo "2369"]
[BlackElo "2407"]
[Result "1-0"]
[Round "05"]
[TimeControl "180+2"]
[Date "2023.05.16"]
[WhiteClock "0:00:07"]
[BlackClock "0:00:03"]

1. e4 {[%clk 0:03:00]}  c5 {[%clk 0:02:59]} 2. Nf3 {[%clk 0:02:56]}  d6 {[%clk 0:03:00]} 3. d4 {[%clk 0:02:56]}  cxd4 {[%clk 0:03:00]} 4. Nxd4 {[%clk 0:02:57]}  Nf6 {[%clk 0:03:01]} 5. Nc3 {[%clk 0:02:58]}  a6 {[%clk 0:03:01]} 6. Be3 {[%clk 0:02:58]}  e5 {[%clk 0:03:01]} 7. Nf3 {[%clk 0:02:57]}  Be7 {[%clk 0:03:00]} 8. Bc4 {[%clk 0:02:57]}  O-O {[%clk 0:03:01]} 9. O-O {[%clk 0:02:56]}  Nc6 {[%clk 0:03:01]} 10. Qe2 {[%clk 0:02:54]}  Na5 {[%clk 0:02:36]} 11. Bb3 {[%clk 0:02:53]}  Nxb3 {[%clk 0:02:27]} 12. axb3 {[%clk 0:02:53]}  h6 {[%clk 0:02:28]} 13. Rfd1 {[%clk 0:02:44]}  Bd7 {[%clk 0:02:24]} 14. Nh4 {[%clk 0:02:41]}  Qc8 {[%clk 0:02:21]} 15. Qc4 {[%clk 0:02:34]}  b5 {[%clk 0:01:43]} 16. Ng6 {[%clk 0:02:25]}  Qe8 {[%clk 0:00:59]} 17. Nxe7+ {[%clk 0:02:21]}  Qxe7 {[%clk 0:01:00]} 18. Qc7 {[%clk 0:02:13]}  Rfc8 {[%clk 0:00:52]} 19. Qxd6 {[%clk 0:02:12]}  Qxd6 {[%clk 0:00:52]} 20. Rxd6 {[%clk 0:02:13]}  b4 {[%clk 0:00:45]} 21. Na4 {[%clk 0:02:02]}  Bxa4 {[%clk 0:00:40]} 22. Rxa4 {[%clk 0:02:00]}  Nxe4 {[%clk 0:00:33]} 23. Rd5 {[%clk 0:01:55]}  Rxc2 {[%clk 0:00:32]} 24. Rxb4 {[%clk 0:01:54]}  Nxf2 {[%clk 0:00:22]} 25. h3 {[%clk 0:01:42]}  a5 {[%clk 0:00:15]} 26. Ra4 {[%clk 0:01:33]}  Rxb2 {[%clk 0:00:08]} 27. Bxf2 {[%clk 0:01:31]}  f6 {[%clk 0:00:08]} 28. Rb5 {[%clk 0:01:24]}  Rd8 {[%clk 0:00:06]} 29. Ra1 {[%clk 0:01:15]}  Rdd2 {[%clk 0:00:06]} 30. Rf1 {[%clk 0:01:15]}  Kh7 {[%clk 0:00:05]} 31. Rxa5 {[%clk 0:01:14]}  Rxb3 {[%clk 0:00:05]} 32. Be1 {[%clk 0:01:09]}  Re2 {[%clk 0:00:05]} 33. Bh4 {[%clk 0:00:56]}  Rbb2 {[%clk 0:00:04]} 34. Rf2 {[%clk 0:00:55]}  Rxf2 {[%clk 0:00:02]} 35. Bxf2 {[%clk 0:00:56]}  h5 {[%clk 0:00:03]} 36. Be3 {[%clk 0:00:51]}  Kg6 {[%clk 0:00:01]} 37. Kh2 {[%clk 0:00:49]}  Kf5 {[%clk 0:00:01]} 38. Ra7 {[%clk 0:00:47]}  g5 {[%clk 0:00:02]} 39. Rh7 {[%clk 0:00:47]}  h4 {[%clk 0:00:02]} 40. Rh6 {[%clk 0:00:45]}  Ra2 {[%clk 0:00:01]} 41. Bc5 {[%clk 0:00:45]}  Ra6 {[%clk 0:00:02]} 42. Kg1 {[%clk 0:00:44]}  e4 {[%clk 0:00:02]} 43. Kf2 {[%clk 0:00:43]}  Rc6 {[%clk 0:00:01]} 44. Be7 {[%clk 0:00:43]}  Re6 {[%clk 0:00:02]} 45. Bb4 {[%clk 0:00:41]}  Re5 {[%clk 0:00:01]} 46. Bc3 {[%clk 0:00:38]}  Re6 {[%clk 0:00:01]} 47. Ke3 {[%clk 0:00:38]}  Rc6 {[%clk 0:00:01]} 48. Bd4 {[%clk 0:00:34]}  Ra6 {[%clk 0:00:02]} 49. Bc3 {[%clk 0:00:28]}  Rd6 {[%clk 0:00:03]} 50. Bb2 {[%clk 0:00:22]}  Rd3+ {[%clk 0:00:02]} 51. Ke2 {[%clk 0:00:22]}  Rd6 {[%clk 0:00:03]} 52. Rh8 {[%clk 0:00:20]}  Ra6 {[%clk 0:00:03]} 53. Rf8 {[%clk 0:00:19]}  Rb6 {[%clk 0:00:02]} 54. Bd4 {[%clk 0:00:19]}  Rd6 {[%clk 0:00:02]} 55. Ke3 {[%clk 0:00:19]}  Ra6 {[%clk 0:00:03]} 56. Bc5 {[%clk 0:00:17]}  Rc6 {[%clk 0:00:02]} 57. Kd4 {[%clk 0:00:17]}  e3 {[%clk 0:00:02]} 58. Kd5 {[%clk 0:00:16]}  Rc7 {[%clk 0:00:01]} 59. Bxe3 {[%clk 0:00:14]}  Rc2 {[%clk 0:00:02]} 60. Bd4 {[%clk 0:00:11]}  Kf4 {[%clk 0:00:03]} 61. g4 {[%clk 0:00:07]}  hxg3 {[%clk 0:00:03]} 62. Rxf6# {[%clk 0:00:07]} 1-0


[Site "https://www.chess.com"]

[Event "Titled Tuesday Blitz May 16 Early 2023"]
[White "Golubev, Mikhail"]
[Black "carokannlover213"]
[WhiteFideId "14100983"]
[WhiteElo "2374"]
[BlackElo "2692"]
[Result "0-1"]
[Round "05"]
[TimeControl "180+2"]
[Date "2023.05.16"]
[WhiteClock "0:00:00"]
[BlackClock "0:00:32"]

1. e4 {[%clk 0:02:56]}  c5 {[%clk 0:02:59]} 2. Nf3 {[%clk 0:02:54]}  d6 {[%clk 0:03:00]} 3. d4 {[%clk 0:02:54]}  cxd4 {[%clk 0:03:01]} 4. Nxd4 {[%clk 0:02:55]}  Nf6 {[%clk 0:03:02]} 5. Nc3 {[%clk 0:02:55]}  Nc6 {[%clk 0:03:02]} 6. Bc4 {[%clk 0:02:54]}  e6 {[%clk 0:03:02]} 7. Be3 {[%clk 0:02:53]}  a6 {[%clk 0:03:01]} 8. Qe2 {[%clk 0:02:51]}  Qc7 {[%clk 0:03:01]} 9. Bb3 {[%clk 0:02:46]}  Na5 {[%clk 0:02:58]} 10. g4 {[%clk 0:02:46]}  Nxb3 {[%clk 0:02:37]} 11. axb3 {[%clk 0:02:42]}  Nd7 {[%clk 0:02:37]} 12. g5 {[%clk 0:02:20]}  Rb8 {[%clk 0:02:31]} 13. f4 {[%clk 0:01:47]}  b5 {[%clk 0:02:16]} 14. f5 {[%clk 0:01:27]}  Nb6 {[%clk 0:01:49]} 15. fxe6 {[%clk 0:01:15]}  fxe6 {[%clk 0:01:49]} 16. O-O {[%clk 0:01:05]}  e5 {[%clk 0:01:44]} 17. Nf5 {[%clk 0:00:55]}  b4 {[%clk 0:01:36]} 18. Nd5 {[%clk 0:00:42]}  Nxd5 {[%clk 0:01:34]} 19. exd5 {[%clk 0:00:43]}  g6 {[%clk 0:01:30]} 20. Ng3 {[%clk 0:00:37]}  Bg7 {[%clk 0:01:23]} 21. Ne4 {[%clk 0:00:34]}  Bf5 {[%clk 0:01:22]} 22. Nf6+ {[%clk 0:00:19]}  Bxf6 {[%clk 0:01:18]} 23. gxf6 {[%clk 0:00:20]}  O-O {[%clk 0:01:16]} 24. Rxa6 {[%clk 0:00:18]}  Rxf6 {[%clk 0:01:08]} 25. Qc4 {[%clk 0:00:11]}  Qf7 {[%clk 0:00:47]} 26. Ra7 {[%clk 0:00:11]}  Qf8 {[%clk 0:00:48]} 27. Qc7 {[%clk 0:00:08]}  Rf7 {[%clk 0:00:40]} 28. Qxf7+ {[%clk 0:00:08]}  Qxf7 {[%clk 0:00:41]} 29. Rxf7 {[%clk 0:00:08]}  Kxf7 {[%clk 0:00:42]} 30. c4 {[%clk 0:00:06]}  bxc3 {[%clk 0:00:41]} 31. bxc3 {[%clk 0:00:05]}  Rxb3 {[%clk 0:00:42]} 32. Rc1 {[%clk 0:00:05]}  Be4 {[%clk 0:00:41]} 33. Bf2 {[%clk 0:00:03]}  Bxd5 {[%clk 0:00:40]} 34. Rd1 {[%clk 0:00:03]}  Ke6 {[%clk 0:00:39]} 35. Be1 {[%clk 0:00:02]}  Rb2 {[%clk 0:00:34]} 36. Rd2 {[%clk 0:00:02]}  Rb1 {[%clk 0:00:32]} 37. Kf2 {[%clk 0:00:02]}  Bc4 {[%clk 0:00:32]} 38. Rc2 {[%clk 0:00:00]}  d5 {[%clk 0:00:32]} 0-1


[Site "https://www.chess.com"]

[Event "Titled Tuesday Blitz May 16 Early 2023"]
[White "Khamdamova, Afruza"]
[Black "Hua, Lefong"]
[WhiteFideId "14210444"]
[BlackFideId "2602253"]
[WhiteElo "2312"]
[BlackElo "2679"]
[Result "1-0"]
[Round "05"]
[TimeControl "180+2"]
[Date "2023.05.16"]
[WhiteClock "0:00:44"]
[BlackClock "0:00:15"]

1. e4 {[%clk 0:03:00]}  c5 {[%clk 0:02:59]} 2. Nf3 {[%clk 0:03:00]}  g6 {[%clk 0:02:59]} 3. d4 {[%clk 0:02:59]}  cxd4 {[%clk 0:03:00]} 4. Nxd4 {[%clk 0:02:59]}  Bg7 {[%clk 0:03:00]} 5. Nc3 {[%clk 0:02:59]}  Nc6 {[%clk 0:03:00]} 6. Be3 {[%clk 0:02:59]}  Nf6 {[%clk 0:02:59]} 7. Bc4 {[%clk 0:02:57]}  Qa5 {[%clk 0:02:59]} 8. f3 {[%clk 0:02:51]}  O-O {[%clk 0:02:32]} 9. Qd2 {[%clk 0:02:45]}  d6 {[%clk 0:02:26]} 10. O-O-O {[%clk 0:02:41]}  Bd7 {[%clk 0:02:26]} 11. Kb1 {[%clk 0:02:40]}  Rfc8 {[%clk 0:02:24]} 12. Bb3 {[%clk 0:02:40]}  Ne5 {[%clk 0:02:16]} 13. h4 {[%clk 0:02:36]}  h5 {[%clk 0:02:16]} 14. Bg5 {[%clk 0:02:35]}  Nc4 {[%clk 0:01:43]} 15. Bxc4 {[%clk 0:02:16]}  Rxc4 {[%clk 0:01:44]} 16. Nb3 {[%clk 0:02:17]}  Qe5 {[%clk 0:01:23]} 17. f4 {[%clk 0:01:20]}  Qe6 {[%clk 0:01:20]} 18. e5 {[%clk 0:01:21]}  Ng4 {[%clk 0:00:55]} 19. Nd4 {[%clk 0:01:12]}  Rxd4 {[%clk 0:00:50]} 20. Qxd4 {[%clk 0:01:12]}  Bc6 {[%clk 0:00:50]} 21. Rhe1 {[%clk 0:00:58]}  Bxg2 {[%clk 0:00:44]} 22. Qg1 {[%clk 0:00:56]}  Bf3 {[%clk 0:00:41]} 23. exd6 {[%clk 0:00:55]}  Bxd1 {[%clk 0:00:21]} 24. Rxe6 {[%clk 0:00:55]}  fxe6 {[%clk 0:00:20]} 25. Qxd1 {[%clk 0:00:51]}  exd6 {[%clk 0:00:19]} 26. Qxd6 {[%clk 0:00:51]}  Kh7 {[%clk 0:00:20]} 27. a3 {[%clk 0:00:51]}  e5 {[%clk 0:00:19]} 28. Ne4 {[%clk 0:00:48]}  exf4 {[%clk 0:00:18]} 29. Nf6+ {[%clk 0:00:46]}  Kh8 {[%clk 0:00:17]} 30. Nxg4 {[%clk 0:00:44]}  hxg4 {[%clk 0:00:16]} 31. Qxf4 {[%clk 0:00:45]}  Rf8 {[%clk 0:00:17]} 32. Qxg4 {[%clk 0:00:45]}  Rf1+ {[%clk 0:00:17]} 33. Ka2 {[%clk 0:00:45]}  Rf2 {[%clk 0:00:18]} 34. Qe4 {[%clk 0:00:45]}  Rf7 {[%clk 0:00:16]} 35. Qxg6 {[%clk 0:00:44]}  Kg8 {[%clk 0:00:17]} 36. h5 {[%clk 0:00:44]}  Kh8 {[%clk 0:00:16]} 37. h6 {[%clk 0:00:45]}  Bxb2 {[%clk 0:00:15]} 38. Qxf7 {[%clk 0:00:45]}  Bxa3 {[%clk 0:00:15]} 39. Bf6# {[%clk 0:00:44]} 1-0


[Site "https://www.chess.com"]

[Event "Titled Tuesday Blitz May 16 Early 2023"]
[White "Krysa, Leandro"]
[Black "Martins, Vinicius Tine"]
[WhiteFideId "116807"]
[BlackFideId "2112884"]
[WhiteElo "2489"]
[BlackElo "2373"]
[Result "1-0"]
[Round "05"]
[TimeControl "180+2"]
[Date "2023.05.16"]
[WhiteClock "0:00:10"]
[BlackClock "0:00:00"]

1. e4 {[%clk 0:03:00]}  c5 {[%clk 0:02:58]} 2. Nf3 {[%clk 0:03:00]}  Nc6 {[%clk 0:02:54]} 3. d4 {[%clk 0:03:00]}  cxd4 {[%clk 0:02:55]} 4. Nxd4 {[%clk 0:03:00]}  g6 {[%clk 0:02:55]} 5. c4 {[%clk 0:02:44]}  Nf6 {[%clk 0:02:55]} 6. Nc3 {[%clk 0:02:43]}  d6 {[%clk 0:02:55]} 7. f3 {[%clk 0:02:39]}  Nxd4 {[%clk 0:02:54]} 8. Qxd4 {[%clk 0:02:39]}  Bg7 {[%clk 0:02:55]} 9. Be3 {[%clk 0:02:37]}  O-O {[%clk 0:02:55]} 10. Qd2 {[%clk 0:02:37]}  Be6 {[%clk 0:02:54]} 11. Be2 {[%clk 0:02:27]}  a5 {[%clk 0:02:54]} 12. Na4 {[%clk 0:02:14]}  Nd7 {[%clk 0:02:52]} 13. Rc1 {[%clk 0:02:13]}  Qc7 {[%clk 0:02:44]} 14. b3 {[%clk 0:02:10]}  Nc5 {[%clk 0:02:42]} 15. Nc3 {[%clk 0:02:05]}  Qb6 {[%clk 0:02:29]} 16. Nb5 {[%clk 0:01:54]}  Rfc8 {[%clk 0:02:23]} 17. Kf2 {[%clk 0:01:46]}  Bd7 {[%clk 0:02:01]} 18. Nd4 {[%clk 0:01:44]}  e5 {[%clk 0:01:51]} 19. Nb5 {[%clk 0:01:39]}  Bxb5 {[%clk 0:01:45]} 20. cxb5 {[%clk 0:01:39]}  Bh6 {[%clk 0:01:41]} 21. Bc4 {[%clk 0:01:18]}  Bxe3+ {[%clk 0:01:28]} 22. Qxe3 {[%clk 0:01:17]}  a4 {[%clk 0:01:18]} 23. Rcd1 {[%clk 0:01:07]}  axb3 {[%clk 0:01:14]} 24. axb3 {[%clk 0:01:08]}  Ra2+ {[%clk 0:01:10]} 25. Kg3 {[%clk 0:01:07]}  Nxe4+ {[%clk 0:00:48]} 26. Qxe4 {[%clk 0:00:54]}  Qf2+ {[%clk 0:00:47]} 27. Kh3 {[%clk 0:00:53]}  Qxg2+ {[%clk 0:00:47]} 28. Kh4 {[%clk 0:00:54]}  g5+ {[%clk 0:00:18]} 29. Kh5 {[%clk 0:00:53]}  Qh3+ {[%clk 0:00:18]} 30. Kxg5 {[%clk 0:00:54]}  h6+ {[%clk 0:00:09]} 31. Kf6 {[%clk 0:00:50]}  Kf8 {[%clk 0:00:04]} 32. Rxd6 {[%clk 0:00:31]}  Rg2 {[%clk 0:00:02]} 33. Rhd1 {[%clk 0:00:10]}  Rg6+ {[%clk 0:00:00]} 34. Qxg6 {[%clk 0:00:10]} 1-0


[Site "https://www.chess.com"]

[Event "Titled Tuesday Blitz May 16 Early 2023"]
[White "Lorenzo De La Riva, Lazaro"]
[Black "Florescu, Codrut-Constantin"]
[WhiteFideId "2268809"]
[BlackFideId "1202200"]
[WhiteElo "2294"]
[BlackElo "2191"]
[Result "0-1"]
[Round "05"]
[TimeControl "180+2"]
[Date "2023.05.16"]
[WhiteClock "0:00:00"]
[BlackClock "0:00:24"]

1. Nf3 {[%clk 0:03:00]}  d5 {[%clk 0:02:59]} 2. g3 {[%clk 0:03:01]}  e6 {[%clk 0:02:59]} 3. Bg2 {[%clk 0:03:00]}  Nf6 {[%clk 0:03:00]} 4. c4 {[%clk 0:03:00]}  Be7 {[%clk 0:03:01]} 5. O-O {[%clk 0:03:00]}  O-O {[%clk 0:03:01]} 6. b3 {[%clk 0:03:00]}  a5 {[%clk 0:03:01]} 7. Nc3 {[%clk 0:02:48]}  c6 {[%clk 0:03:00]} 8. d3 {[%clk 0:02:46]}  Nbd7 {[%clk 0:02:56]} 9. Bb2 {[%clk 0:02:44]}  Rb8 {[%clk 0:02:53]} 10. Qc2 {[%clk 0:02:35]}  b5 {[%clk 0:02:53]} 11. e4 {[%clk 0:02:33]}  dxc4 {[%clk 0:02:48]} 12. bxc4 {[%clk 0:02:30]}  bxc4 {[%clk 0:02:48]} 13. d4 {[%clk 0:02:13]}  Ba6 {[%clk 0:02:42]} 14. Rab1 {[%clk 0:02:06]}  Qc7 {[%clk 0:02:41]} 15. Rfd1 {[%clk 0:01:56]}  h6 {[%clk 0:02:41]} 16. h4 {[%clk 0:01:55]}  Bb4 {[%clk 0:02:38]} 17. e5 {[%clk 0:01:47]}  Nd5 {[%clk 0:02:37]} 18. Ne4 {[%clk 0:01:47]}  Be7 {[%clk 0:02:36]} 19. a3 {[%clk 0:01:46]}  Rb7 {[%clk 0:02:33]} 20. Ra1 {[%clk 0:01:43]}  Rfb8 {[%clk 0:02:31]} 21. Bc1 {[%clk 0:01:42]}  c5 {[%clk 0:02:27]} 22. Nc3 {[%clk 0:00:46]}  N7b6 {[%clk 0:02:15]} 23. Ne2 {[%clk 0:00:43]}  cxd4 {[%clk 0:02:00]} 24. Nfxd4 {[%clk 0:00:42]}  Nd7 {[%clk 0:02:00]} 25. Nf4 {[%clk 0:00:38]}  Nxf4 {[%clk 0:01:50]} 26. Bxf4 {[%clk 0:00:37]}  Rb2 {[%clk 0:01:45]} 27. Qc1 {[%clk 0:00:37]}  R2b6 {[%clk 0:01:07]} 28. Bxh6 {[%clk 0:00:21]}  gxh6 {[%clk 0:01:07]} 29. Qxh6 {[%clk 0:00:21]}  Qxe5 {[%clk 0:00:54]} 30. Nf3 {[%clk 0:00:20]}  Qf6 {[%clk 0:00:51]} 31. Qh5 {[%clk 0:00:20]}  Nf8 {[%clk 0:00:45]} 32. Ng5 {[%clk 0:00:19]}  Rb2 {[%clk 0:00:37]} 33. f4 {[%clk 0:00:13]}  Bb7 {[%clk 0:00:26]} 34. Bxb7 {[%clk 0:00:06]}  R2xb7 {[%clk 0:00:26]} 35. Rac1 {[%clk 0:00:00]}  c3 {[%clk 0:00:24]} 0-1


[Site "https://www.chess.com"]

[Event "Titled Tuesday Blitz May 16 Early 2023"]
[White "Turzo, Attila"]
[Black "Manukyan, Sargis A."]
[WhiteFideId "704954"]
[BlackFideId "13303970"]
[WhiteElo "2474"]
[BlackElo "2187"]
[Result "0-1"]
[Round "05"]
[TimeControl "180+2"]
[Date "2023.05.16"]
[WhiteClock "0:00:00"]
[BlackClock "0:00:10"]

1. d4 {[%clk 0:02:58]}  d5 {[%clk 0:02:59]} 2. c4 {[%clk 0:02:58]}  e6 {[%clk 0:02:59]} 3. Nf3 {[%clk 0:02:58]}  Nf6 {[%clk 0:03:00]} 4. g3 {[%clk 0:02:58]}  Be7 {[%clk 0:03:00]} 5. Bg2 {[%clk 0:02:58]}  O-O {[%clk 0:03:01]} 6. O-O {[%clk 0:02:59]}  dxc4 {[%clk 0:03:02]} 7. Qc2 {[%clk 0:02:58]}  a6 {[%clk 0:03:02]} 8. a4 {[%clk 0:02:56]}  c5 {[%clk 0:03:01]} 9. dxc5 {[%clk 0:02:54]}  Nbd7 {[%clk 0:03:00]} 10. c6 {[%clk 0:02:48]}  bxc6 {[%clk 0:02:56]} 11. Nbd2 {[%clk 0:02:47]}  c5 {[%clk 0:02:54]} 12. Nxc4 {[%clk 0:02:47]}  Bb7 {[%clk 0:02:54]} 13. Bf4 {[%clk 0:02:45]}  Nd5 {[%clk 0:02:52]} 14. Bd2 {[%clk 0:02:28]}  h6 {[%clk 0:02:47]} 15. a5 {[%clk 0:02:23]}  Qc7 {[%clk 0:02:37]} 16. Rfd1 {[%clk 0:02:17]}  Rac8 {[%clk 0:02:36]} 17. Bc3 {[%clk 0:02:02]}  Nxc3 {[%clk 0:02:34]} 18. bxc3 {[%clk 0:02:00]}  Rfd8 {[%clk 0:02:31]} 19. Rab1 {[%clk 0:01:53]}  Bd5 {[%clk 0:02:28]} 20. Nb6 {[%clk 0:01:52]}  Nxb6 {[%clk 0:02:28]} 21. Rxb6 {[%clk 0:01:48]}  Rd6 {[%clk 0:02:11]} 22. c4 {[%clk 0:01:36]}  Be4 {[%clk 0:01:55]} 23. Qb3 {[%clk 0:01:36]}  Rxb6 {[%clk 0:01:47]} 24. axb6 {[%clk 0:01:32]}  Qb7 {[%clk 0:01:47]} 25. Ne1 {[%clk 0:01:21]}  Bxg2 {[%clk 0:01:45]} 26. Nxg2 {[%clk 0:01:21]}  Rb8 {[%clk 0:01:41]} 27. Rb1 {[%clk 0:01:15]}  Bd8 {[%clk 0:01:39]} 28. Qa4 {[%clk 0:01:08]}  Bxb6 {[%clk 0:01:38]} 29. Ra1 {[%clk 0:01:05]}  a5 {[%clk 0:01:34]} 30. Rb1 {[%clk 0:01:03]}  Qc7 {[%clk 0:01:26]} 31. Rb5 {[%clk 0:01:00]}  Ba7 {[%clk 0:01:22]} 32. Ne3 {[%clk 0:00:48]}  Rxb5 {[%clk 0:01:22]} 33. cxb5 {[%clk 0:00:48]}  Bb6 {[%clk 0:00:51]} 34. Qc4 {[%clk 0:00:44]}  Qd8 {[%clk 0:00:50]} 35. Qa4 {[%clk 0:00:42]}  Qd4 {[%clk 0:00:33]} 36. Qxd4 {[%clk 0:00:34]}  cxd4 {[%clk 0:00:34]} 37. Nc4 {[%clk 0:00:35]}  Bd8 {[%clk 0:00:25]} 38. b6 {[%clk 0:00:34]}  a4 {[%clk 0:00:25]} 39. b7 {[%clk 0:00:33]}  Bc7 {[%clk 0:00:25]} 40. Kf1 {[%clk 0:00:27]}  Kf8 {[%clk 0:00:25]} 41. Ke1 {[%clk 0:00:22]}  Ke7 {[%clk 0:00:26]} 42. Kd1 {[%clk 0:00:22]}  Kd7 {[%clk 0:00:26]} 43. Kc2 {[%clk 0:00:20]}  Kc6 {[%clk 0:00:26]} 44. Na5+ {[%clk 0:00:19]}  Kb6 {[%clk 0:00:26]} 45. Nc4+ {[%clk 0:00:15]}  Kxb7 {[%clk 0:00:25]} 46. Nb2 {[%clk 0:00:15]}  a3 {[%clk 0:00:25]} 47. Nc4 {[%clk 0:00:15]}  a2 {[%clk 0:00:25]} 48. Kb2 {[%clk 0:00:16]}  Kc6 {[%clk 0:00:25]} 49. Kxa2 {[%clk 0:00:16]}  Kc5 {[%clk 0:00:26]} 50. Kb3 {[%clk 0:00:17]}  e5 {[%clk 0:00:26]} 51. f3 {[%clk 0:00:16]}  f5 {[%clk 0:00:26]} 52. h3 {[%clk 0:00:16]}  g5 {[%clk 0:00:26]} 53. g4 {[%clk 0:00:16]}  e4 {[%clk 0:00:16]} 54. fxe4 {[%clk 0:00:14]}  fxe4 {[%clk 0:00:16]} 55. Nd2 {[%clk 0:00:13]}  Kd5 {[%clk 0:00:16]} 56. Nc4 {[%clk 0:00:12]}  Bf4 {[%clk 0:00:16]} 57. Kb4 {[%clk 0:00:11]}  Bc7 {[%clk 0:00:15]} 58. Kb5 {[%clk 0:00:11]}  d3 {[%clk 0:00:14]} 59. e3 {[%clk 0:00:10]}  Bf4 {[%clk 0:00:13]} 60. Kb4 {[%clk 0:00:05]}  Bxe3 {[%clk 0:00:13]} 61. Nxe3+ {[%clk 0:00:06]}  Kd4 {[%clk 0:00:14]} 62. Nf5+ {[%clk 0:00:06]}  Ke5 {[%clk 0:00:14]} 63. Kc3 {[%clk 0:00:05]}  h5 {[%clk 0:00:14]} 64. Kd2 {[%clk 0:00:03]}  h4 {[%clk 0:00:09]} 65. Ke3 {[%clk 0:00:03]}  d2 {[%clk 0:00:09]} 66. Kxd2 {[%clk 0:00:03]}  Kf4 {[%clk 0:00:10]} 67. Ke2 {[%clk 0:00:00]}  e3 {[%clk 0:00:10]} 0-1


[Site "https://www.chess.com"]

[Event "Titled Tuesday Blitz May 16 Early 2023"]
[White "hakanazeri2"]
[Black "UNSTOPPABLE_LEGEND"]
[WhiteElo "2607"]
[BlackElo "2465"]
[Result "1-0"]
[Round "05"]
[TimeControl "180+2"]
[Date "2023.05.16"]
[WhiteClock "0:00:24"]
[BlackClock "0:00:02"]

1. d4 {[%clk 0:02:52]}  Nf6 {[%clk 0:02:59]} 2. Nc3 {[%clk 0:02:51]}  d5 {[%clk 0:02:58]} 3. Bf4 {[%clk 0:02:40]}  c5 {[%clk 0:02:58]} 4. e3 {[%clk 0:02:29]}  cxd4 {[%clk 0:02:56]} 5. exd4 {[%clk 0:02:30]}  a6 {[%clk 0:02:56]} 6. Nf3 {[%clk 0:02:29]}  Nc6 {[%clk 0:02:53]} 7. Bd3 {[%clk 0:02:21]}  Bg4 {[%clk 0:02:51]} 8. Ne2 {[%clk 0:02:19]}  e6 {[%clk 0:02:28]} 9. c3 {[%clk 0:02:07]}  Bxf3 {[%clk 0:02:26]} 10. gxf3 {[%clk 0:02:08]}  Bd6 {[%clk 0:02:26]} 11. Qd2 {[%clk 0:02:06]}  Qc7 {[%clk 0:02:13]} 12. Bg3 {[%clk 0:01:52]}  Ne7 {[%clk 0:01:45]} 13. h4 {[%clk 0:01:40]}  Nf5 {[%clk 0:01:40]} 14. Bxf5 {[%clk 0:01:38]}  exf5 {[%clk 0:01:41]} 15. Qg5 {[%clk 0:01:38]}  O-O {[%clk 0:01:22]} 16. Rg1 {[%clk 0:01:31]}  Ne8 {[%clk 0:00:32]} 17. Qxf5 {[%clk 0:01:30]}  Rd8 {[%clk 0:00:28]} 18. O-O-O {[%clk 0:01:29]}  g6 {[%clk 0:00:23]} 19. Qg5 {[%clk 0:01:25]}  Qe7 {[%clk 0:00:18]} 20. Bxd6 {[%clk 0:01:02]}  Qxd6 {[%clk 0:00:16]} 21. Nf4 {[%clk 0:00:56]}  Ng7 {[%clk 0:00:14]} 22. Rde1 {[%clk 0:00:55]}  f6 {[%clk 0:00:14]} 23. Qg4 {[%clk 0:00:51]}  Rde8 {[%clk 0:00:12]} 24. h5 {[%clk 0:00:48]}  g5 {[%clk 0:00:11]} 25. Rxe8 {[%clk 0:00:42]}  Rxe8 {[%clk 0:00:11]} 26. h6 {[%clk 0:00:42]}  Ne6 {[%clk 0:00:04]} 27. Nh5 {[%clk 0:00:26]}  Qe7 {[%clk 0:00:03]} 28. Qf5 {[%clk 0:00:25]}  Qf7 {[%clk 0:00:03]} 29. Nxf6+ {[%clk 0:00:25]}  Kh8 {[%clk 0:00:04]} 30. Qe5 {[%clk 0:00:24]}  Nf8 {[%clk 0:00:02]} 31. Nxe8+ {[%clk 0:00:24]} 1-0


[Site "https://www.chess.com"]